[Event "European Online Club-ch-E 2021"]
[Site "Online"]
[Date "2021.03.27"]
[Round "2.12"]
[White "Soham Das"]
[Black "Apostolakakis, Konstantinos"]
[Result "0-1"]
[ECO "A47"]
[WhiteElo "2385"]
[BlackElo "2074"]
[Annotator "NA"]
[PlyCount "80"]
[EventDate "2021.03.27"]
[EventType "team-tourn"]
[EventCountry "NET"]
[SourceTitle "playchess.com"]
[Source "ChessBase"]
[SourceQuality "1"]
[TimeControl "900+5"]

1. d4 {[%emt 0:00:00]} Nf6 {[%emt 0:00:08]} 2. Bf4 {[%emt 0:00:15]} e6 {[%emt 0:00:05]} 3. e3 {[%emt 0:00:10]} b6 {[%emt 0:00:16]} 4. Nd2 {[%emt 0:00:43]} Bb7 {[%emt 0:00:04]} 5. Ngf3 {[%emt 0:00:13]} c5 {[%emt 0:00:21]} 6. c3 {[%emt 0:00:09]} cxd4 {[%emt 0:00:41]} 7. exd4 {[%emt 0:00:03]} d6 {[%emt 0:00:13]} 8. Bd3 {[%emt 0:00:15]} Be7 {[%emt 0:00:07]} 9. O-O {[%emt 0:00:20]} O-O {[%emt 0:00:03]} 10. a4 {[%emt 0:00:04]} a6 {[%emt 0:00:15]} 11. Re1 {[%emt 0:00:03]} Nbd7 {[%emt 0:00:10]} 12. Qe2 {[%emt 0:00:04]} Qc7 {[%emt 0:00:17]} 13. h3 {[%emt 0:00:07]} Rfe8 {[%emt 0:00:24]} 14. Ng5 {[%emt 0:00:35]} Bf8 {[%emt 0:00:41]} 15. Nde4 {[%emt 0:02:39]} h6 {[%emt 0:00:44]} 16. Nf3 {[%emt 0:00:29]} Nxe4 {[%emt 0:00:47]} 17. Bxe4 {[%emt 0:00:07]} Bxe4 {[%emt 0:00:09]} 18. Qxe4 {[%emt 0:00:03]} Nf6 {[%emt 0:00:26]} 19. Qd3 {[%emt 0:00:03]} Qb7 {[%emt 0:00:54]} 20. c4 {[%emt 0:00:58]} d5 {[%emt 0:02:09]} 21. b3 {[%emt 0:00:54]} Red8 {[%emt 0:00:21]} 22. Rad1 {[%emt 0:02:24]} Rac8 {[%emt 0:00:23]} 23. Ne5 {[%emt 0:00:10]} a5 {[%emt 0:00:59]} 24. Qf3 {[%emt 0:04:12]} Be7 {[%emt 0:01:53]} 25. g4 {[%emt 0:00:36]} Bb4 {[%emt 0:01:32]} 26. Re2 {[%emt 0:00:37]} Ne4 {[%emt 0:00:19]} 27. cxd5 {[%emt 0:00:20]} exd5 {[%emt 0:00:05]} 28. Nd3 {[%emt 0:00:06]} Nc3 {[%emt 0:00:31]} 29. Re3 {[%emt 0:00:25]} Nxd1 {[%emt 0:00:05]} 30. Qxd1 {[%emt 0:00:02]} Re8 {[%emt 0:00:55]} 31. Qf3 {[%emt 0:00:13]} Rxe3 {[%emt 0:00:05]} 32. Bxe3 {[%emt 0:00:04]} Bd6 {[%emt 0:00:13]} 33. Bd2 {[%emt 0:00:12]} Rc2 {[%emt 0:00:27]} 34. Qe2 {[%emt 0:00:06]} Qe7 {[%emt 0:00:22]} 35. Qd1 {[%emt 0:00:02]} Rc8 {[%emt 0:00:07]} 36. f3 {[%emt 0:00:08]} Qf6 {[%emt 0:00:07]} 37. Be3 {[%emt 0:00:05]} Re8 {[%emt 0:00:04]} 38. Qd2 {[%emt 0:00:04]} Qh4 {[%emt 0:00:05]} 39. Qf2 {[%emt 0:00:10]} Bg3 {[%emt 0:00:15]} 40. Qe2 {[%emt 0:00:05]} Qxh3 {[%emt 0:00:03]} 0-1

[Event "European Online Club-ch-E 2021"]
[Site "Online"]
[Date "2021.03.27"]
[Round "2.14"]
[White "Postny, Evgeny"]
[Black "Caglar, Sila"]
[Result "1-0"]
[ECO "E92"]
[WhiteElo "2605"]
[BlackElo "2250"]
[Annotator "ChessBase"]
[PlyCount "67"]
[EventDate "2021.03.27"]
[EventType "team-tourn"]
[EventCountry "NET"]
[SourceTitle "playchess.com"]
[Source "ChessBase"]
[SourceQuality "1"]
[TimeControl "900+5"]

1. d4 {[%emt 0:00:00]} Nf6 {[%emt 0:00:05]} 2. c4 {[%emt 0:00:03]} g6 {[%emt 0:00:02]} 3. Nc3 {[%emt 0:00:02]} Bg7 {[%emt 0:00:01]} 4. e4 {[%emt 0:00:02]} d6 {[%emt 0:00:02]} 5. Nf3 {[%emt 0:00:01]} O-O {[%emt 0:00:04]} 6. Be2 {[%emt 0:00:02]} e5 {[%emt 0:00:04]} 7. d5 {[%emt 0:00:02]} a5 {[%emt 0:00:03]} 8. h3 {[%emt 0:00:02]} Na6 {[%emt 0:00:32]} 9. Bg5 {[%emt 0:00:04]} Bd7 {[%emt 0:00:44]} 10. Nd2 {[%emt 0:00:11]} Qe8 {[%emt 0:00:11]} 11. O-O {[%emt 0:00:22]} h6 {[%emt 0:01:25]} 12. Be3 {[%emt 0:00:02]} Nh7 {[%emt 0:00:13]} 13. a3 {[%emt 0:01:05]} f5 {[%emt 0:00:44]} 14. f3 {[%emt 0:00:02]} f4 {[%emt 0:00:21]} 15. Bf2 {[%emt 0:00:02]} g5 {[%emt 0:00:05]} 16. b4 {[%emt 0:00:31]} h5 {[%emt 0:01:46]} 17. c5 {[%emt 0:00:08]} Nf6 {[%emt 0:01:39]} 18. cxd6 {[%emt 0:03:50]} cxd6 {[%emt 0:00:03]} 19. Nc4 {[%emt 0:00:02]} g4 {[%emt 0:02:41]} 20. Nxd6 {[%emt 0:00:48]} Qg6 {[%emt 0:00:03]} 21. Nf5 {[%emt 0:00:13]} Bxf5 {[%emt 0:01:09]} 22. exf5 {[%emt 0:00:02]} Qxf5 {[%emt 0:00:11]} 23. fxg4 {[%emt 0:01:23]} hxg4 {[%emt 0:00:10]} 24. hxg4 {[%emt 0:00:44]} Qg5 {[%emt 0:04:09]} 25. b5 {[%emt 0:00:16]} e4 {[%emt 0:00:29]} 26. bxa6 {[%emt 0:00:41]} f3 {[%emt 0:00:05]} 27. gxf3 {[%emt 0:03:28]} exf3 {[%emt 0:00:06]} 28. Bxf3 {[%emt 0:00:01]} Nxg4 {[%emt 0:00:05]} 29. Ne4 {[%emt 0:00:18]} Nxf2+ {[%emt 0:00:08]} 30. Nxg5 {[%emt 0:00:05]} Nxd1 {[%emt 0:00:01]} 31. Raxd1 {[%emt 0:00:03]} Rxa6 {[%emt 0:00:03]} 32. Ne6 {[%emt 0:00:03]} Rf5 {[%emt 0:00:08]} 33. Be2 {[%emt 0:00:08]} Re5 {[%emt 0:00:07]} 34. Bxa6 {[%emt 0:00:03]} 1-0

[Event "European Online Club-ch-E 2021"]
[Site "Online"]
[Date "2021.03.27"]
[Round "2.15"]
[White "Kocyigit, Buse Naz"]
[Black "Steinberg, Nitzan"]
[Result "0-1"]
[ECO "D45"]
[WhiteElo "2143"]
[BlackElo "2553"]
[Annotator "ChessBase"]
[PlyCount "74"]
[EventDate "2021.03.27"]
[EventType "team-tourn"]
[EventCountry "NET"]
[SourceTitle "playchess.com"]
[Source "ChessBase"]
[SourceQuality "1"]
[TimeControl "900+5"]

1. Nf3 {[%emt 0:00:00]} d5 {[%emt 0:00:10]} 2. d4 {[%emt 0:00:02]} Nf6 {[%emt 0:00:02]} 3. c4 {[%emt 0:00:03]} c6 {[%emt 0:00:02]} 4. Nc3 {[%emt 0:00:13]} e6 {[%emt 0:00:02]} 5. e3 {[%emt 0:00:05]} Nbd7 {[%emt 0:00:02]} 6. Qc2 {[%emt 0:00:02]} Bd6 {[%emt 0:00:09]} 7. Be2 {[%emt 0:00:03]} dxc4 {[%emt 0:00:20]} 8. a4 {[%emt 0:00:02]} O-O {[%emt 0:00:25]} 9. Bxc4 {[%emt 0:00:10]} e5 {[%emt 0:00:46]} 10. O-O {[%emt 0:00:35]} Qe7 {[%emt 0:00:59]} 11. h3 {[%emt 0:00:44]} a5 {[%emt 0:00:27]} 12. Rd1 {[%emt 0:01:26]} Kh8 {[%emt 0:01:35]} 13. Bb3 {[%emt 0:01:26]} b6 {[%emt 0:01:25]} 14. Ng5 {[%emt 0:05:34]} h6 {[%emt 0:00:33]} 15. Nge4 {[%emt 0:00:11]} Bb8 {[%emt 0:00:30]} 16. d5 {[%emt 0:00:26]} Bb7 {[%emt 0:00:03]} 17. d6 {[%emt 0:00:38]} Qd8 {[%emt 0:00:12]} 18. Nxf6 {[%emt 0:00:35]} Qxf6 {[%emt 0:00:09]} 19. Ne4 {[%emt 0:00:43]} Qg6 {[%emt 0:00:03]} 20. Ng3 {[%emt 0:00:16]} f5 {[%emt 0:00:42]} 21. e4 {[%emt 0:01:25]} f4 {[%emt 0:00:03]} 22. Nf5 {[%emt 0:00:07]} Nc5 {[%emt 0:00:08]} 23. f3 {[%emt 0:00:41]} Ba7 {[%emt 0:00:08]} 24. Kh1 {[%emt 0:00:17]} Rad8 {[%emt 0:00:06]} 25. Bc4 {[%emt 0:00:22]} Bb8 {[%emt 0:01:34]} 26. b3 {[%emt 0:00:02]} Qf6 {[%emt 0:00:32]} 27. Ba3 {[%emt 0:00:33]} Kh7 {[%emt 0:00:05]} 28. Bxc5 {[%emt 0:00:14]} bxc5 {[%emt 0:00:02]} 29. Qc3 {[%emt 0:00:04]} g6 {[%emt 0:00:09]} 30. Qxa5 {[%emt 0:00:26]} gxf5 {[%emt 0:00:04]} 31. exf5 {[%emt 0:00:01]} Bc8 {[%emt 0:00:40]} 32. Qxc5 {[%emt 0:00:03]} Bxf5 {[%emt 0:00:14]} 33. Qxc6 {[%emt 0:00:01]} Qh4 {[%emt 0:00:41]} 34. Bf1 {[%emt 0:00:13]} Rg8 {[%emt 0:00:08]} 35. d7 {[%emt 0:00:04]} Ba7 {[%emt 0:01:36]} 36. Ra2 {[%emt 0:00:02]} Bxh3 {[%emt 0:00:09]} 37. Bd3+ {[%emt 0:00:08]} Bf5# {[%emt 0:00:02]} 0-1

[Event "European Online Club-ch-E 2021"]
[Site "Online"]
[Date "2021.03.27"]
[Round "2.16"]
[White "Huzman, Alexander"]
[Black "Ince, Safiye Oyku"]
[Result "1-0"]
[ECO "A33"]
[WhiteElo "2561"]
[BlackElo "1995"]
[Annotator "ChessBase"]
[PlyCount "105"]
[EventDate "2021.03.27"]
[EventType "team-tourn"]
[EventCountry "NET"]
[SourceTitle "playchess.com"]
[Source "ChessBase"]
[SourceQuality "1"]
[TimeControl "900+5"]

1. Nf3 {[%emt 0:00:00]} Nf6 {[%emt 0:00:17]} 2. g3 {[%emt 0:00:04]} e6 {[%emt 0:00:20]} 3. Bg2 {[%emt 0:00:04]} c5 {[%emt 0:00:07]} 4. O-O {[%emt 0:00:05]} Be7 {[%emt 0:00:31]} 5. c4 {[%emt 0:00:06]} O-O {[%emt 0:00:04]} 6. d4 {[%emt 0:00:02]} cxd4 {[%emt 0:00:04]} 7. Nxd4 {[%emt 0:00:03]} Nc6 {[%emt 0:00:04]} 8. Nc3 {[%emt 0:00:05]} a6 {[%emt 0:02:29]} 9. Bf4 {[%emt 0:00:30]} Nxd4 {[%emt 0:00:29]} 10. Qxd4 {[%emt 0:00:03]} d6 {[%emt 0:00:03]} 11. Qd2 {[%emt 0:00:25]} Qc7 {[%emt 0:00:19]} 12. Rac1 {[%emt 0:00:22]} e5 {[%emt 0:01:04]} 13. Bg5 {[%emt 0:00:07]} Be6 {[%emt 0:00:08]} 14. Rfd1 {[%emt 0:00:36]} Ne8 {[%emt 0:01:43]} 15. Bxe7 {[%emt 0:00:43]} Qxe7 {[%emt 0:00:02]} 16. Nd5 {[%emt 0:00:02]} Bxd5 {[%emt 0:00:05]} 17. Qxd5 {[%emt 0:00:03]} Rb8 {[%emt 0:00:28]} 18. c5 {[%emt 0:00:14]} dxc5 {[%emt 0:00:10]} 19. Qxc5 {[%emt 0:00:02]} Qe6 {[%emt 0:00:45]} 20. Bd5 {[%emt 0:00:48]} Qg4 {[%emt 0:00:23]} 21. Bf3 {[%emt 0:00:31]} Qe6 {[%emt 0:00:20]} 22. Qd5 {[%emt 0:00:38]} Nf6 {[%emt 0:02:02]} 23. Qxe6 {[%emt 0:00:25]} fxe6 {[%emt 0:00:03]} 24. e3 {[%emt 0:00:25]} Rf7 {[%emt 0:02:12]} 25. Rd6 {[%emt 0:00:47]} e4 {[%emt 0:00:56]} 26. Be2 {[%emt 0:00:04]} Re7 {[%emt 0:00:28]} 27. Rc4 {[%emt 0:00:26]} Kf7 {[%emt 0:00:16]} 28. Kf1 {[%emt 0:00:03]} Ke8 {[%emt 0:00:11]} 29. Bd1 {[%emt 0:00:59]} Rd8 {[%emt 0:00:28]} 30. Rxd8+ {[%emt 0:00:05]} Kxd8 {[%emt 0:00:03]} 31. Bb3 {[%emt 0:00:34]} e5 {[%emt 0:00:26]} 32. Rc5 {[%emt 0:00:03]} Kd7 {[%emt 0:00:22]} 33. Ke2 {[%emt 0:00:05]} Kd6 {[%emt 0:00:02]} 34. Rc8 {[%emt 0:00:03]} Rc7 {[%emt 0:00:07]} 35. Rb8 {[%emt 0:00:07]} Kc6 {[%emt 0:00:07]} 36. h3 {[%emt 0:00:11]} Rd7 {[%emt 0:00:08]} 37. Ba4+ {[%emt 0:00:27]} b5 {[%emt 0:00:03]} 38. Bb3 {[%emt 0:00:10]} a5 {[%emt 0:00:03]} 39. a4 {[%emt 0:00:05]} b4 {[%emt 0:00:06]} 40. Rb5 {[%emt 0:00:07]} Ra7 {[%emt 0:00:03]} 41. Rxe5 {[%emt 0:00:04]} Kd6 {[%emt 0:00:06]} 42. Rb5 {[%emt 0:00:04]} Kc6 {[%emt 0:00:06]} 43. Bc4 {[%emt 0:00:05]} Kd6 {[%emt 0:00:04]} 44. b3 {[%emt 0:00:05]} Kc6 {[%emt 0:00:06]} 45. g4 {[%emt 0:00:10]} h6 {[%emt 0:00:05]} 46. Rf5 {[%emt 0:00:11]} Kb6 {[%emt 0:00:09]} 47. Re5 {[%emt 0:00:13]} Kc6 {[%emt 0:00:07]} 48. Kf1 {[%emt 0:00:14]} Kd6 {[%emt 0:00:03]} 49. Rb5 {[%emt 0:00:03]} Kc6 {[%emt 0:00:01]} 50. Kg2 {[%emt 0:00:02]} Kd6 {[%emt 0:00:08]} 51. Kg3 {[%emt 0:00:02]} g5 {[%emt 0:00:04]} 52. Rb6+ {[%emt 0:00:06]} Ke7 {[%emt 0:00:07]} 53. Re6+ {[%emt 0:00:02]} 1-0

[Event "European Online Club-ch-E 2021"]
[Site "Online"]
[Date "2021.03.27"]
[Round "2.20"]
[White "Cornette, Matthieu"]
[Black "Durarbayli, Vasif"]
[Result "0-1"]
[ECO "C28"]
[WhiteElo "2555"]
[BlackElo "2606"]
[Annotator "ChessBase"]
[PlyCount "106"]
[EventDate "2021.03.27"]
[EventType "team-tourn"]
[EventCountry "NET"]
[SourceTitle "playchess.com"]
[Source "ChessBase"]
[SourceQuality "1"]
[TimeControl "900+5"]

1. e4 {[%emt 0:00:00]} e5 {[%emt 0:00:04]} 2. Nc3 {[%emt 0:00:07]} Nf6 {[%emt 0:00:16]} 3. Bc4 {[%emt 0:00:04]} Nc6 {[%emt 0:00:36]} 4. d3 {[%emt 0:00:07]} Na5 {[%emt 0:00:22]} 5. Bb3 {[%emt 0:00:17]} Be7 {[%emt 0:02:37]} 6. f4 {[%emt 0:00:23]} Nxb3 {[%emt 0:01:31]} 7. axb3 {[%emt 0:00:04]} d6 {[%emt 0:00:34]} 8. Nf3 {[%emt 0:00:22]} exf4 {[%emt 0:00:18]} 9. Bxf4 {[%emt 0:00:02]} O-O {[%emt 0:00:01]} 10. O-O {[%emt 0:00:03]} Be6 {[%emt 0:01:09]} 11. Qe1 {[%emt 0:00:53]} a6 {[%emt 0:01:05]} 12. h3 {[%emt 0:01:44]} Qd7 {[%emt 0:00:48]} 13. d4 {[%emt 0:00:48]} c6 {[%emt 0:00:06]} 14. Rd1 {[%emt 0:00:14]} Rae8 {[%emt 0:00:15]} 15. g4 {[%emt 0:01:53]} Bd8 {[%emt 0:01:23]} 16. Qg3 {[%emt 0:00:48]} d5 {[%emt 0:00:03]} 17. e5 {[%emt 0:01:19]} Ne4 {[%emt 0:00:05]} 18. Nxe4 {[%emt 0:00:07]} dxe4 {[%emt 0:00:01]} 19. Ng5 {[%emt 0:00:07]} f5 {[%emt 0:01:06]} 20. exf6 {[%emt 0:01:57]} Bxf6 {[%emt 0:00:05]} 21. Nxe6 {[%emt 0:01:04]} Qxe6 {[%emt 0:01:42]} 22. Be3 {[%emt 0:00:39]} Be7 {[%emt 0:00:02]} 23. Rxf8+ {[%emt 0:00:19]} Rxf8 {[%emt 0:00:02]} 24. Rf1 {[%emt 0:00:07]} Rxf1+ {[%emt 0:00:20]} 25. Kxf1 {[%emt 0:00:03]} Bd6 {[%emt 0:00:06]} 26. Qh4 {[%emt 0:00:44]} Be7 {[%emt 0:00:34]} 27. Qf2 {[%emt 0:00:28]} h5 {[%emt 0:00:27]} 28. Qf4 {[%emt 0:00:28]} Bd6 {[%emt 0:00:17]} 29. Qg5 {[%emt 0:01:13]} Qf7+ {[%emt 0:00:04]} 30. Ke1 {[%emt 0:00:42]} Bg3+ {[%emt 0:00:25]} 31. Kd2 {[%emt 0:00:04]} Qf1 {[%emt 0:00:02]} 32. Kc3 {[%emt 0:00:19]} Be1+ {[%emt 0:00:05]} 33. Bd2 {[%emt 0:00:01]} Qxh3+ {[%emt 0:00:14]} 34. Kc4 {[%emt 0:00:05]} Bxd2 {[%emt 0:00:05]} 35. Qxd2 {[%emt 0:00:00]} Qxg4 {[%emt 0:00:01]} 36. Kc5 {[%emt 0:00:09]} h4 {[%emt 0:00:13]} 37. Kb6 {[%emt 0:00:03]} h3 {[%emt 0:00:10]} 38. Qh2 {[%emt 0:00:10]} Qe6 {[%emt 0:00:07]} 39. Kxb7 {[%emt 0:00:08]} e3 {[%emt 0:00:05]} 40. Qe2 {[%emt 0:00:01]} Qd7+ {[%emt 0:00:13]} 41. Kxa6 {[%emt 0:00:02]} Qxd4 {[%emt 0:00:03]} 42. Qh5 {[%emt 0:00:04]} Qd7 {[%emt 0:00:10]} 43. Kb6 {[%emt 0:00:15]} Qe6 {[%emt 0:00:04]} 44. Qe2 {[%emt 0:00:04]} g6 {[%emt 0:00:24]} 45. c4 {[%emt 0:00:02]} Kg7 {[%emt 0:00:02]} 46. b4 {[%emt 0:00:03]} Qe5 {[%emt 0:00:05]} 47. b5 {[%emt 0:00:04]} h2 {[%emt 0:00:03]} 48. Qe1 {[%emt 0:00:11]} cxb5 {[%emt 0:00:04]} 49. c5 {[%emt 0:00:01]} e2 {[%emt 0:00:02]} 50. c6 {[%emt 0:00:02]} h1=Q {[%emt 0:00:05]} 51. Qxh1 {[%emt 0:00:01]} e1=Q {[%emt 0:00:01]} 52. Qxe1 {[%emt 0:00:01]} Qxe1 {[%emt 0:00:02]} 53. c7 {[%emt 0:00:00]} Qe8 {[%emt 0:00:08]} 0-1

[Event "European Online Club-ch-E 2021"]
[Site "Online"]
[Date "2021.03.27"]
[Round "3.2"]
[White "Helie, Marc"]
[Black "Moussard, Jules"]
[Result "0-1"]
[ECO "A86"]
[WhiteElo "2083"]
[BlackElo "2635"]
[Annotator "ChessBase"]
[PlyCount "88"]
[EventDate "2021.03.27"]
[EventType "team-tourn"]
[EventCountry "NET"]
[SourceTitle "playchess.com"]
[Source "ChessBase"]
[SourceQuality "1"]
[TimeControl "900+5"]

1. d4 {[%emt 0:00:00]} f5 {[%emt 0:00:03]} 2. g3 {[%emt 0:00:17]} Nf6 {[%emt 0:00:01]} 3. Bg2 {[%emt 0:00:04]} g6 {[%emt 0:00:01]} 4. Nh3 {[%emt 0:00:04]} Bg7 {[%emt 0:00:01]} 5. O-O {[%emt 0:00:03]} O-O {[%emt 0:00:06]} 6. c4 {[%emt 0:00:05]} d6 {[%emt 0:00:02]} 7. Nc3 {[%emt 0:00:08]} c6 {[%emt 0:00:01]} 8. d5 {[%emt 0:00:26]} e5 {[%emt 0:00:06]} 9. dxe6 {[%emt 0:00:05]} Bxe6 {[%emt 0:00:03]} 10. Qb3 {[%emt 0:01:04]} Qb6 {[%emt 0:00:28]} 11. Bf4 {[%emt 0:01:05]} Rd8 {[%emt 0:00:24]} 12. Rad1 {[%emt 0:00:20]} Ne8 {[%emt 0:00:04]} 13. Ng5 {[%emt 0:00:13]} Bc8 {[%emt 0:00:03]} 14. c5+ {[%emt 0:00:22]} Qxb3 {[%emt 0:00:03]} 15. axb3 {[%emt 0:00:05]} h6 {[%emt 0:00:05]} 16. Nf3 {[%emt 0:00:37]} d5 {[%emt 0:00:09]} 17. e4 {[%emt 0:00:50]} fxe4 {[%emt 0:00:03]} 18. Nxe4 {[%emt 0:00:05]} Na6 {[%emt 0:00:01]} 19. Nd6 {[%emt 0:01:12]} Nxc5 {[%emt 0:00:26]} 20. Nxc8 {[%emt 0:00:17]} Raxc8 {[%emt 0:00:03]} 21. b4 {[%emt 0:00:03]} Ne4 {[%emt 0:00:09]} 22. Be5 {[%emt 0:00:20]} Bxe5 {[%emt 0:00:03]} 23. Nxe5 {[%emt 0:00:03]} Kg7 {[%emt 0:00:02]} 24. Rfe1 {[%emt 0:00:12]} N8f6 {[%emt 0:00:03]} 25. f3 {[%emt 0:00:05]} Nd6 {[%emt 0:00:02]} 26. Bh3 {[%emt 0:00:16]} Rc7 {[%emt 0:00:01]} 27. Nd3 {[%emt 0:00:24]} Nh7 {[%emt 0:00:27]} 28. Nc5 {[%emt 0:00:12]} Nf8 {[%emt 0:00:03]} 29. Re2 {[%emt 0:00:33]} b6 {[%emt 0:00:06]} 30. Nd3 {[%emt 0:00:16]} Re8 {[%emt 0:00:24]} 31. Rde1 {[%emt 0:00:08]} Rxe2 {[%emt 0:00:08]} 32. Rxe2 {[%emt 0:00:03]} Kf6 {[%emt 0:00:04]} 33. Kf2 {[%emt 0:00:06]} g5 {[%emt 0:00:11]} 34. Ne5 {[%emt 0:00:26]} c5 {[%emt 0:00:15]} 35. bxc5 {[%emt 0:00:41]} bxc5 {[%emt 0:00:03]} 36. Ng4+ {[%emt 0:00:04]} Kg7 {[%emt 0:00:03]} 37. Rd2 {[%emt 0:00:29]} d4 {[%emt 0:00:04]} 38. Ne5 {[%emt 0:00:06]} Ng6 {[%emt 0:00:12]} 39. Nd7 {[%emt 0:00:20]} h5 {[%emt 0:00:12]} 40. Be6 {[%emt 0:00:28]} g4 {[%emt 0:00:08]} 41. b4 {[%emt 0:00:19]} gxf3 {[%emt 0:00:05]} 42. Kxf3 {[%emt 0:00:10]} c4 {[%emt 0:00:29]} 43. Rxd4 {[%emt 0:00:15]} c3 {[%emt 0:00:02]} 44. Nc5 {[%emt 0:00:13]} c2 {[%emt 0:00:05]} 0-1

[Event "European Online Club-ch-E 2021"]
[Site "Online"]
[Date "2021.03.27"]
[Round "3.3"]
[White "Gozzoli, Yannick"]
[Black "Barbini, Denis"]
[Result "1-0"]
[ECO "D44"]
[WhiteElo "2600"]
[BlackElo "2035"]
[Annotator "ChessBase"]
[PlyCount "33"]
[EventDate "2021.03.27"]
[EventType "team-tourn"]
[EventCountry "NET"]
[SourceTitle "playchess.com"]
[Source "ChessBase"]
[SourceQuality "1"]
[TimeControl "900+5"]

1. d4 {[%emt 0:00:00]} d5 {[%emt 0:00:05]} 2. c4 {[%emt 0:00:03]} c6 {[%emt 0:00:02]} 3. Nf3 {[%emt 0:00:06]} Nf6 {[%emt 0:00:05]} 4. Nc3 {[%emt 0:00:01]} e6 {[%emt 0:00:02]} 5. Bg5 {[%emt 0:00:43]} dxc4 {[%emt 0:03:58]} 6. e4 {[%emt 0:00:06]} b5 {[%emt 0:00:02]} 7. e5 {[%emt 0:00:01]} h6 {[%emt 0:00:05]} 8. Bh4 {[%emt 0:00:03]} g5 {[%emt 0:00:02]} 9. exf6 {[%emt 0:00:15]} gxh4 {[%emt 0:00:04]} 10. Ne5 {[%emt 0:00:01]} Qxf6 {[%emt 0:01:22]} 11. a4 {[%emt 0:00:02]} Bb4 {[%emt 0:00:17]} 12. Be2 {[%emt 0:00:33]} Bb7 {[%emt 0:01:51]} 13. Bf3 {[%emt 0:00:05]} a6 {[%emt 0:00:21]} 14. axb5 {[%emt 0:00:16]} axb5 {[%emt 0:00:09]} 15. Rxa8 {[%emt 0:00:00]} Bxa8 {[%emt 0:00:02]} 16. Qa1 {[%emt 0:00:05]} Bb7 {[%emt 0:02:20]} 17. Qa7 {[%emt 0:00:04]} 1-0

[Event "European Online Club-ch-E 2021"]
[Site "Online"]
[Date "2021.03.27"]
[Round "3.4"]
[White "Marchadour, Emilie"]
[Black "Cornette, Matthieu"]
[Result "0-1"]
[ECO "C70"]
[WhiteElo "2006"]
[BlackElo "2555"]
[Annotator "ChessBase"]
[PlyCount "120"]
[EventDate "2021.03.27"]
[EventType "team-tourn"]
[EventCountry "NET"]
[SourceTitle "playchess.com"]
[Source "ChessBase"]
[SourceQuality "1"]
[TimeControl "900+5"]

1. e4 {[%emt 0:00:00]} e5 {[%emt 0:00:13]} 2. Nf3 {[%emt 0:00:04]} Nc6 {[%emt 0:00:02]} 3. Bb5 {[%emt 0:00:04]} a6 {[%emt 0:00:02]} 4. Ba4 {[%emt 0:00:03]} g6 {[%emt 0:00:03]} 5. O-O {[%emt 0:00:03]} Bg7 {[%emt 0:00:05]} 6. c3 {[%emt 0:00:33]} b5 {[%emt 0:00:57]} 7. Bc2 {[%emt 0:00:05]} d6 {[%emt 0:00:02]} 8. h3 {[%emt 0:00:04]} Nge7 {[%emt 0:00:09]} 9. d3 {[%emt 0:00:08]} O-O {[%emt 0:00:05]} 10. Bg5 {[%emt 0:00:21]} h6 {[%emt 0:00:13]} 11. Bh4 {[%emt 0:00:04]} f5 {[%emt 0:01:46]} 12. d4 {[%emt 0:00:37]} f4 {[%emt 0:00:35]} 13. Bxe7 {[%emt 0:01:12]} Qxe7 {[%emt 0:00:15]} 14. a4 {[%emt 0:00:21]} Rb8 {[%emt 0:00:19]} 15. axb5 {[%emt 0:00:13]} axb5 {[%emt 0:00:00]} 16. d5 {[%emt 0:01:31]} Nd8 {[%emt 0:00:08]} 17. Nbd2 {[%emt 0:00:02]} g5 {[%emt 0:00:17]} 18. Nh2 {[%emt 0:00:07]} Qf7 {[%emt 0:00:10]} 19. Ra7 {[%emt 0:00:32]} h5 {[%emt 0:00:25]} 20. f3 {[%emt 0:00:06]} Bf6 {[%emt 0:00:34]} 21. Qe2 {[%emt 0:00:06]} Qd7 {[%emt 0:00:35]} 22. Rfa1 {[%emt 0:00:13]} Nf7 {[%emt 0:00:05]} 23. Bd3 {[%emt 0:00:29]} Nh6 {[%emt 0:00:27]} 24. Ra8 {[%emt 0:00:08]} Rxa8 {[%emt 0:01:07]} 25. Rxa8 {[%emt 0:00:05]} Qg7 {[%emt 0:00:05]} 26. Bxb5 {[%emt 0:00:34]} g4 {[%emt 0:00:03]} 27. fxg4 {[%emt 0:00:07]} hxg4 {[%emt 0:00:16]} 28. hxg4 {[%emt 0:00:04]} Bh4 {[%emt 0:00:32]} 29. Ndf3 {[%emt 0:01:54]} Bg3 {[%emt 0:00:06]} 30. g5 {[%emt 0:00:06]} Nf7 {[%emt 0:00:36]} 31. Ba6 {[%emt 0:03:10]} Bd7 {[%emt 0:00:18]} 32. Rxf8+ {[%emt 0:00:07]} Qxf8 {[%emt 0:00:19]} 33. g6 {[%emt 0:00:16]} Nh6 {[%emt 0:00:13]} 34. Qc4 {[%emt 0:00:35]} Qb8 {[%emt 0:00:07]} 35. b4 {[%emt 0:00:09]} Kg7 {[%emt 0:01:41]} 36. Ng5 {[%emt 0:00:56]} Qb6+ {[%emt 0:01:46]} 37. Kh1 {[%emt 0:00:09]} Bxh2 {[%emt 0:00:21]} 38. Kxh2 {[%emt 0:00:04]} Qf2 {[%emt 0:00:21]} 39. Nf3 {[%emt 0:01:24]} Ng4+ {[%emt 0:00:22]} 40. Kh1 {[%emt 0:00:03]} Ne3 {[%emt 0:00:06]} 41. Qe2 {[%emt 0:00:06]} Qg3 {[%emt 0:00:02]} 42. Kg1 {[%emt 0:00:21]} Qxg6 {[%emt 0:00:22]} 43. Bd3 {[%emt 0:00:05]} Bh3 {[%emt 0:00:36]} 44. Nh4 {[%emt 0:00:02]} Qg5 {[%emt 0:00:07]} 45. Qf2 {[%emt 0:00:15]} Bg4 {[%emt 0:00:40]} 46. Nf5+ {[%emt 0:00:10]} Bxf5 {[%emt 0:00:24]} 47. exf5 {[%emt 0:00:02]} Nxd5 {[%emt 0:00:03]} 48. Qa7 {[%emt 0:00:16]} f3 {[%emt 0:00:07]} 49. Bf1 {[%emt 0:00:09]} fxg2 {[%emt 0:00:30]} 50. Bxg2 {[%emt 0:00:06]} Qe3+ {[%emt 0:00:06]} 51. Qxe3 {[%emt 0:00:04]} Nxe3 {[%emt 0:00:00]} 52. Be4 {[%emt 0:00:31]} Kf6 {[%emt 0:00:03]} 53. Kf2 {[%emt 0:00:05]} Nd1+ {[%emt 0:00:05]} 54. Kf3 {[%emt 0:00:07]} Nxc3 {[%emt 0:00:03]} 55. Bb7 {[%emt 0:00:09]} Kxf5 {[%emt 0:00:10]} 56. Ke3 {[%emt 0:00:03]} d5 {[%emt 0:00:14]} 57. Kd3 {[%emt 0:00:04]} d4 {[%emt 0:00:02]} 58. Bc6 {[%emt 0:00:05]} Ke6 {[%emt 0:00:06]} 59. Bg2 {[%emt 0:00:13]} Nd5 {[%emt 0:00:11]} 60. b5 {[%emt 0:00:07]} Kd6 {[%emt 0:00:02]} 0-1